fUST/lending_fUST_20250727
["ID","MTS","AMOUNT","RATE_DAILY","PERIOD"]
[375274066,1753612249324,-460.0,0.00021095,2]
[375274067,1753612249333,-460.0,0.00021095,2]
[375274068,1753612249343,-563.3,0.00021095,2]
[375274069,1753612249352,-460.0,0.00021095,2]
[375274070,1753612249362,-151.0,0.00021095,2]
[375274071,1753612249371,-151.0,0.00021095,2]
[375274072,1753612249380,-460.0,0.00021095,2]
[375274073,1753612249390,-151.0,0.00021095,2]
[375274074,1753612249400,-151.0,0.00021095,2]
[375274075,1753612249409,-151.0,0.00021095,2]
[375274076,1753612249418,-460.0,0.00021095,2]
[375274077,1753612249427,-264.503526,0.00021095,2]
[375274078,1753612249437,-264.503526,0.00021095,2]
[375274079,1753612249446,-151.0,0.00021095,2]
[375274080,1753612249456,-1263.61653388,0.00021095,2]
[375274081,1753612249465,-838.11,0.00021095,2]
[375274082,1753612249474,-590.56,0.00021095,2]
[375274083,1753612249484,-1103.32,0.00021095,2]
[375274084,1753612249495,-271.381224,0.00021095,2]
[375274085,1753612249504,-716.54,0.00021095,2]
[375274086,1753612249514,-151.0,0.00021095,2]
[375274087,1753612249524,-151.0,0.00021095,2]
[375274088,1753612249535,-460.0,0.00021095,2]
[375274089,1753612249544,-151.0,0.00021095,2]
[375274090,1753612249554,-151.0,0.00021095,2]
[375274091,1753612249563,-460.0,0.00021095,2]
[375274092,1753612249573,-151.0,0.00021095,2]
[375274093,1753612249677,-460.0,0.00021095,2]
[375274094,1753612249687,-151.0,0.00021095,2]
[375274095,1753612249697,-4686.83,0.00021095,2]
[375274096,1753612249706,-151.0,0.00021095,2]
[375274097,1753612249715,-151.0,0.00021095,2]
[375274098,1753612249725,-460.0,0.00021095,2]
[375274099,1753612249734,-775.26,0.00021095,2]
[375274100,1753612249744,-611.59,0.00021095,2]
[375274101,1753612249753,-5031.59,0.00021095,2]
[375274102,1753612249763,-461.49714433,0.00021095,2]
[375274103,1753612249774,-460.0,0.00021095,2]
[375274104,1753612249784,-535.45,0.00021095,2]
[375274105,1753612249793,-3527.67,0.00021095,2]
[375274106,1753612249803,-1827.36,0.00021095,2]
[375274107,1753612249812,-1887.82,0.00021095,2]
[375274108,1753612249822,-460.0,0.00021095,2]
[375274109,1753612249831,-614.29,0.00021095,2]
[375274110,1753612249840,-170.13,0.00021095,2]
[375274111,1753612249849,-460.0,0.00021095,2]
[375274112,1753612249859,-2214.31,0.00021095,2]
[375274113,1753612249868,-599.1,0.00021095,2]
[375274114,1753612249878,-779.87,0.00021095,2]
[375274115,1753612249888,-1073.35,0.00021095,2]
[375274116,1753612249898,-520.92,0.00021095,2]
[375274117,1753612249907,-460.0,0.00021095,2]
[375274118,1753612249917,-2106.4,0.00021095,2]
[375274119,1753612249926,-1603.91,0.00021095,2]
[375274120,1753612249935,-2725.78,0.00021095,2]
[375274121,1753612249946,-690.0,0.00021095,2]
[375274122,1753612249956,-1525.37,0.00021095,2]
[375274123,1753612249966,-982.37,0.00021095,2]
[375274124,1753612249975,-344.97293541,0.00021095,2]
[375274125,1753612249985,-460.0,0.00021095,2]
[375274126,1753612249995,-2245.93,0.00021095,2]
[375274127,1753612250004,-2043.29,0.00021095,2]
[375274128,1753612250014,-460.0,0.00021095,2]
[375274129,1753612250023,-460.0,0.00021095,2]
[375274130,1753612250033,-460.0,0.00021095,2]
[375274131,1753612250042,-460.0,0.00021095,2]
[375274132,1753612250052,-460.0,0.00021095,2]
[375274133,1753612250062,-151.0,0.00021095,2]
[375274134,1753612250072,-2233.32,0.00021095,2]
[375274135,1753612250082,-635.65,0.00021095,2]
[375274136,1753612250093,-722.74,0.00021095,2]
[375274137,1753612250102,-627.07,0.00021095,2]
[375274138,1753612250112,-570.74,0.00021095,2]
[375274139,1753612250122,-463.36,0.00021095,2]
[375274140,1753612250131,-562.3,0.00021095,2]
[375274141,1753612250141,-460.0,0.00021095,2]
[375274142,1753612250150,-460.0,0.00021095,2]
[375274143,1753612250159,-800.65,0.00021095,2]
[375274144,1753612250169,-482.48,0.00021095,2]
[375274145,1753612250180,-513.13,0.00021095,2]
[375274146,1753612250190,-692.74,0.00021095,2]
[375274147,1753612250199,-460.0,0.00021095,2]
[375274148,1753612250210,-151.0,0.00021095,2]
[375274149,1753612250220,-912.91,0.00021095,2]
[375274150,1753612250231,-522.56,0.00021095,2]
[375274151,1753612250244,-2532.53,0.00021095,2]
[375274152,1753612250254,-155.438248,0.00021095,2]
[375274153,1753612250265,-460.0,0.00021095,2]
[375274154,1753612250275,-151.0,0.00021096,2]
[375274155,1753612250285,-151.0,0.00021096,2]
[375274156,1753612250295,-151.0,0.00021096,2]
[375274157,1753612250304,-485.0,0.00021096,2]
[375274158,1753612250316,-151.0,0.00021096,2]
[375274159,1753612250326,-151.0,0.00021096,2]
[375274160,1753612250336,-151.0,0.00021096,2]
[375274161,1753612250346,-500.0,0.00021096,2]
[375274162,1753612250355,-583.93639202,0.00021096,2]
[375274163,1753612250365,-151.0,0.00021096,2]
[375274164,1753612250374,-151.0,0.00021096,2]
[375274165,1753612250383,-500.0,0.00021096,2]
[375274166,1753612250394,-500.0,0.00021096,2]
[375274167,1753612250404,-198.0,0.00021096,2]
[375274168,1753612250413,-500.0,0.00021096,2]
[375274169,1753612250423,-459.0,0.00021096,2]
[375274170,1753612250432,-500.0,0.00021096,2]
[375274171,1753612250443,-500.0,0.00021096,2]
[375274172,1753612250453,-500.0,0.00021096,2]
[375274173,1753612250462,-151.56511578,0.00021096,2]
[375274174,1753612250472,-151.0,0.00021096,2]
[375274175,1753612250481,-151.0,0.00021096,2]
[375274176,1753612250491,-227.04716193,0.00021096,2]
[375274177,1753612250500,-500.0,0.00021096,2]
[375274178,1753612250510,-500.0,0.00021096,2]
[375274179,1753612250519,-500.0,0.00021096,2]
[375274180,1753612250528,-3000.0,0.000211,2]
[375274181,1753612250537,-151.0,0.000211,3]
[375274182,1753612250548,-3000.0,0.0002111,2]
[375274183,1753612250557,-168.0,0.00021116,2]
[375274184,1753612250567,-3000.0,0.0002112,2]
[375274185,1753612250576,-3000.0,0.0002113,2]
[375274186,1753612250586,-4584.0,0.00021131,2]
[375274187,1753612250595,-4459.523265,0.0002114,2]
[375274188,1753612250605,-3530.03203711,0.00021245,4]
[375274189,1753612250615,-174.359371,0.00021245,2]
[375274190,1753612250625,-153.617775,0.00021245,2]
[375274191,1753612250635,-151.0,0.00021245,2]
[375274192,1753612250645,-151.0,0.00021245,2]
[375274193,1753612250656,-334.0,0.00021249,2]
[375274194,1753612250666,-168.0,0.00021255,2]
[375274195,1753612250676,-1884.49125886,0.00021269,2]
[375274196,1753612250687,-160.0,0.00021273,4]
[375274197,1753612250698,-460.0,0.00021369,2]
[375274198,1753612250708,-460.0,0.00021369,2]
[375274199,1753612250717,-563.3,0.00021369,2]
[375274200,1753612250726,-151.775212,0.00021369,2]
[375274201,1753612250735,-151.0,0.00021369,2]
[375274202,1753612250745,-460.0,0.00021369,2]
[375274203,1753612250754,-151.0,0.00021369,2]
[375274204,1753612250763,-460.0,0.00021369,2]
[375274205,1753612250772,-264.503526,0.00021369,2]
[375274206,1753612250782,-264.503526,0.00021369,2]
[375274207,1753612250792,-151.0,0.00021369,2]
[375274208,1753612250801,-151.0,0.00021369,2]
[375274209,1753612250811,-154.01718,0.00021369,2]
[375274210,1753612250820,-838.11,0.00021369,2]
[375274211,1753612250829,-590.56,0.00021369,2]
[375274212,1753612250839,-151.0,0.00021369,2]
[375274213,1753612250848,-716.54,0.00021369,2]
[375274214,1753612250858,-1103.32,0.00021369,2]
[375274215,1753612250868,-151.0,0.00021369,2]
[375274216,1753612250877,-175.855063,0.00021369,2]
[375274217,1753612250888,-460.0,0.00021369,2]
[375274218,1753612250897,-151.0,0.00021369,2]
[375274219,1753612250907,-460.0,0.00021369,2]
[375274220,1753612250917,-151.0,0.00021369,2]
[375274221,1753612250927,-460.0,0.00021369,2]
[375274222,1753612250936,-4686.83,0.00021369,2]
[375274223,1753612250946,-151.0,0.00021369,2]
[375274224,1753612250955,-460.0,0.00021369,2]
[375274225,1753612250965,-775.26,0.00021369,2]
[375274226,1753612250975,-611.59,0.00021369,2]
[375274227,1753612250984,-151.0,0.00021369,2]
[375274228,1753612250994,-5031.59,0.00021369,2]
[375274229,1753612251004,-151.0,0.00021369,2]
[375274230,1753612251014,-151.0,0.00021369,2]
[375274231,1753612251023,-151.0,0.00021369,2]
[375274232,1753612251036,-460.0,0.00021369,2]
[375274233,1753612251046,-151.0,0.00021369,2]
[375274234,1753612251056,-153.236711,0.00021369,2]
[375274235,1753612251066,-151.0,0.00021369,2]
[375274236,1753612251076,-535.45,0.00021369,2]
[375274237,1753612251090,-151.0,0.00021369,2]
[375274238,1753612251099,-3527.67,0.00021369,2]
[375274239,1753612251109,-1827.36,0.00021369,2]
[375274240,1753612251118,-460.0,0.00021369,2]
[375274241,1753612251127,-1887.82,0.00021369,2]
[375274242,1753612251136,-614.29,0.00021369,2]
[375274243,1753612251146,-151.0,0.00021369,2]
[375274244,1753612251155,-460.0,0.00021369,2]
[375274245,1753612251165,-151.0,0.00021369,2]
[375274246,1753612251174,-151.0,0.00021369,2]
[375274247,1753612251183,-2214.31,0.00021369,2]
[375274248,1753612251192,-151.0,0.00021369,2]
[375274249,1753612251202,-151.0,0.00021369,2]
[375274250,1753612251211,-599.1,0.00021369,2]
[375274251,1753612251220,-779.87,0.00021369,2]
[375274252,1753612251230,-1073.35,0.00021369,2]
[375274253,1753612251242,-520.92,0.00021369,2]
[375274254,1753612251251,-460.0,0.00021369,2]
[375274255,1753612251260,-2106.4,0.00021369,2]
[375274256,1753612251270,-1603.91,0.00021369,2]
[375274257,1753612251280,-2725.78,0.00021369,2]
[375274258,1753612251290,-690.0,0.00021369,2]
[375274259,1753612251299,-1525.37,0.00021369,2]
[375274260,1753612251309,-982.37,0.00021369,2]
[375274261,1753612251318,-151.0,0.00021369,2]
[375274262,1753612251328,-151.0,0.00021369,2]
[375274263,1753612251337,-460.0,0.00021369,2]
[375274264,1753612251347,-2245.93,0.00021369,2]
[375274265,1753612251356,-2043.29,0.00021369,2]
[375274266,1753612251365,-460.0,0.00021369,2]
[375274267,1753612251375,-460.0,0.00021369,2]
[375274268,1753612251384,-460.0,0.00021369,2]
[375274269,1753612251393,-181.80547574,0.00021369,2]
[375274270,1753612251403,-460.0,0.00021369,2]
[375274271,1753612251413,-2233.32,0.00021369,2]
[375274272,1753612251422,-635.65,0.00021369,2]
[375274273,1753612251431,-722.74,0.00021369,2]
[375274274,1753612251441,-627.07,0.00021369,2]
[375274275,1753612251450,-319.188211,0.00021369,2]
[375274276,1753612251460,-570.74,0.00021369,2]
[375274277,1753612251469,-319.188211,0.00021369,2]
[375274278,1753612251479,-463.36,0.00021369,2]
[375274279,1753612251488,-562.3,0.00021369,2]
[375274280,1753612251497,-255.44270431,0.00021369,2]
[375274281,1753612251506,-460.0,0.00021369,2]
[375274282,1753612251516,-800.65,0.00021369,2]
[375274283,1753612251525,-482.48,0.00021369,2]
[375274284,1753612251536,-513.13,0.00021369,2]
[375274285,1753612251545,-692.74,0.00021369,2]
[375274286,1753612251555,-460.0,0.00021369,2]
[375274287,1753612251565,-912.91,0.00021369,2]
[375274288,1753612251575,-522.56,0.00021369,2]
[375274289,1753612251584,-151.0,0.00021369,2]
[375274290,1753612251676,-2532.53,0.00021369,2]
[375274291,1753612251687,-460.0,0.00021369,2]
[375274292,1753612251697,-151.0,0.0002137,2]
[375274293,1753612251707,-151.0,0.0002137,2]
[375274294,1753612251716,-151.0,0.0002137,2]
[375274295,1753612251726,-485.0,0.0002137,2]
[375274296,1753612251735,-151.0,0.0002137,2]
[375274297,1753612251744,-151.0,0.0002137,2]
[375274298,1753612251753,-151.0,0.0002137,2]
[375274299,1753612251763,-500.0,0.0002137,2]
[375274300,1753612251772,-151.0,0.0002137,2]
[375274301,1753612251782,-151.0,0.0002137,2]
[375274302,1753612251791,-602.24277656,0.0002137,2]
[375274303,1753612251801,-500.0,0.0002137,2]
[375274304,1753612251811,-205.5461917,0.0002137,2]
[375274305,1753612251821,-459.0,0.0002137,2]
[375274306,1753612251830,-500.0,0.0002137,2]
[375274307,1753612251839,-500.0,0.0002137,2]
[375274308,1753612251848,-500.0,0.0002137,2]
[375274309,1753612251858,-152.6791758,0.0002137,2]
[375274310,1753612251868,-500.0,0.0002137,2]
[375274311,1753612251881,-152.35542293,0.0002137,2]
[375274312,1753612251891,-500.0,0.0002137,2]
[375274313,1753612251900,-1258.0,0.00021373,2]
[375274314,1753612251910,-6076.42655576,0.00021407,2]
[375274315,1753612251919,-3530.03203711,0.00021417,5]
[375274316,1753612251929,-151.0,0.00021424,2]
[375274317,1753612251938,-151.0,0.00021424,2]
[375274318,1753612251948,-151.0,0.00021424,2]
[375274319,1753612251957,-1258.0,0.00021445,2]
[375274320,1753612251967,-189.316117,0.00021445,2]
[375274321,1753612251976,-971.991,0.00021499,2]
[375274322,1753612251985,-421.487,0.00021499,2]
[375274323,1753612251995,-151.0,0.00021513,4]
[375274324,1753612252004,-168.0,0.00021523,2]
[375274325,1753612252014,-360.0,0.00021561,2]
[375274326,1753612252024,-500.0,0.00021573,2]
[375274327,1753612252035,-500.0,0.00021573,2]
[375274328,1753612252044,-500.0,0.00021573,2]
[375274329,1753612252054,-500.88939275,0.00021573,2]
[375274330,1753612252063,-500.0,0.00021573,2]
[375274331,1753612252072,-503.38529828,0.00021573,2]
[375274332,1753612252081,-500.0,0.00021573,2]
[375274333,1753612252091,-500.0,0.00021573,2]
[375274334,1753612252101,-500.0,0.00021573,2]
[375274335,1753612252110,-500.0,0.00021573,2]
[375274336,1753612252120,-500.0,0.00021573,2]
[375274337,1753612252130,-501.05464748,0.00021573,2]
[375274338,1753612252140,-500.0,0.00021573,2]
[375274339,1753612252150,-500.0,0.00021573,2]
[375274340,1753612252160,-500.0,0.00021573,2]
[375274341,1753612252169,-500.0,0.00021573,2]
[375274342,1753612252179,-500.0,0.00021573,2]
[375274343,1753612252189,-500.0,0.00021573,2]
[375274344,1753612252199,-500.50351289,0.00021573,2]
[375274345,1753612252208,-500.0,0.00021573,2]
[375274346,1753612252217,-500.0,0.00021573,2]
[375274347,1753612252227,-501.27535184,0.00021573,2]
[375274348,1753612252241,-5908.8949034,0.00021577,2]
[375274349,1753612252251,-242.40976437,0.00021587,2]
[375274350,1753612252261,-200.98219254,0.00021587,2]
[375274351,1753612252273,-519.58939806,0.00021588,2]
[375274352,1753612252283,-140552.5362951,0.00021588,2]
[375274353,1753612252293,-151.667071,0.00021588,2]
[375274354,1753612252302,-151.0,0.00021588,2]
[375274355,1753612252312,-151.0,0.00021588,2]
[375274356,1753612252322,-151.0,0.00021588,2]
[375274357,1753612252331,-152.611178,0.00021588,2]
[375274358,1753612252340,-151.0,0.00021588,2]
[375274359,1753612252350,-151.0,0.00021588,2]
[375274360,1753612252359,-151.0,0.00021588,2]
[375274361,1753612252368,-151.0,0.00021588,2]
[375274362,1753612252378,-151.0,0.00021588,2]
[375274363,1753612252387,-151.0,0.00021588,2]
[375274364,1753612252397,-151.0,0.00021588,2]
[375274365,1753612252406,-151.0,0.00021588,2]
[375274366,1753612252416,-151.0,0.00021588,2]
[375274367,1753612252426,-151.0,0.00021588,2]
[375274368,1753612252435,-151.0,0.00021588,2]
[375274369,1753612252445,-264.503526,0.00021588,2]
[375274370,1753612252455,-264.503526,0.00021588,2]
[375274371,1753612252464,-151.0,0.00021588,2]
[375274372,1753612252474,-151.0,0.00021588,2]
[375274373,1753612252484,-152.374892,0.00021588,2]
[375274374,1753612252493,-151.0,0.00021588,2]
[375274375,1753612252502,-151.0,0.00021588,2]
[375274376,1753612252512,-175.855063,0.00021588,2]
[375274377,1753612252522,-151.0,0.00021588,2]
[375274378,1753612252532,-151.0,0.00021588,2]
[375274379,1753612252542,-151.0,0.00021588,2]
[375274380,1753612252553,-151.0,0.00021588,2]
[375274381,1753612252564,-151.0,0.00021588,2]
[375274382,1753612252574,-151.0,0.00021588,2]
[375274383,1753612252585,-151.0,0.00021588,2]
[375274384,1753612252596,-151.0,0.00021588,2]
[375274385,1753612252607,-151.0,0.00021588,2]
[375274386,1753612252619,-151.0,0.00021588,2]
[375274387,1753612252631,-151.0,0.00021588,2]
[375274388,1753612252640,-151.0,0.00021588,2]
[375274389,1753612252649,-151.0,0.00021588,2]
[375274390,1753612252658,-151.0,0.00021588,2]
[375274391,1753612252668,-151.0,0.00021588,2]
[375274392,1753612252677,-151.0,0.00021588,2]
[375274393,1753612252686,-151.0,0.00021588,2]
[375274394,1753612252695,-151.0,0.00021588,2]
[375274395,1753612252705,-151.0,0.00021588,2]
[375274396,1753612252714,-151.0,0.00021588,2]
[375274397,1753612252723,-151.0,0.00021588,2]
[375274398,1753612252732,-151.0,0.00021588,2]
[375274399,1753612252742,-319.188211,0.00021588,2]
[375274400,1753612252751,-319.188211,0.00021588,2]
[375274401,1753612252760,-3530.03203711,0.0002159,5]
[375274402,1753612252769,-3695.69142364,0.00021594,2]
[375274403,1753612252778,-460.0,0.00021643,2]
[375274404,1753612252789,-460.0,0.00021643,2]
[375274405,1753612252799,-563.3,0.00021643,2]
[375274406,1753612252809,-460.0,0.00021643,2]
[375274407,1753612252818,-460.0,0.00021643,2]
[375274408,1753612252827,-838.11,0.00021643,2]
[375274409,1753612252836,-590.56,0.00021643,2]
[375274410,1753612252846,-716.54,0.00021643,2]
[375274411,1753612252855,-1103.32,0.00021643,2]
[375274412,1753612252865,-460.0,0.00021643,2]
[375274413,1753612252874,-460.0,0.00021643,2]
[375274414,1753612252883,-460.0,0.00021643,2]
[375274415,1753612252893,-4686.83,0.00021643,2]
[375274416,1753612252902,-460.0,0.00021643,2]
[375274417,1753612252911,-775.26,0.00021643,2]
[375274418,1753612252920,-611.59,0.00021643,2]
[375274419,1753612252931,-5031.59,0.00021643,2]
[375274420,1753612252941,-460.0,0.00021643,2]
[375274421,1753612252951,-535.45,0.00021643,2]
[375274422,1753612252961,-3527.67,0.00021643,2]
[375274423,1753612252971,-1827.36,0.00021643,2]
[375274424,1753612252980,-460.0,0.00021643,2]
[375274425,1753612252989,-1887.82,0.00021643,2]
[375274426,1753612252999,-614.29,0.00021643,2]
[375274427,1753612253009,-460.0,0.00021643,2]
[375274428,1753612253018,-2214.31,0.00021643,2]
[375274429,1753612253027,-599.1,0.00021643,2]
[375274430,1753612253037,-779.87,0.00021643,2]
[375274431,1753612253046,-1073.35,0.00021643,2]
[375274432,1753612253054,-520.92,0.00021643,2]
[375274433,1753612253064,-460.0,0.00021643,2]
[375274434,1753612253073,-2106.4,0.00021643,2]
[375274435,1753612253082,-1603.91,0.00021643,2]
[375274436,1753612253091,-2725.78,0.00021643,2]
[375274437,1753612253100,-690.0,0.00021643,2]
[375274438,1753612253110,-1525.37,0.00021643,2]
[375274439,1753612253119,-982.37,0.00021643,2]
[375274440,1753612253128,-460.0,0.00021643,2]
[375274441,1753612253138,-2245.93,0.00021643,2]
[375274442,1753612253147,-2043.29,0.00021643,2]
[375274443,1753612253156,-460.0,0.00021643,2]
[375274444,1753612253166,-460.0,0.00021643,2]
[375274445,1753612253175,-460.0,0.00021643,2]
[375274446,1753612253185,-460.0,0.00021643,2]
[375274447,1753612253195,-2233.32,0.00021643,2]
[375274448,1753612253204,-635.65,0.00021643,2]
[375274449,1753612253213,-722.74,0.00021643,2]
[375274450,1753612253223,-627.07,0.00021643,2]
[375274451,1753612253237,-570.74,0.00021643,2]
[375274452,1753612253247,-463.36,0.00021643,2]
[375274453,1753612253256,-562.3,0.00021643,2]
[375274454,1753612253265,-460.0,0.00021643,2]
[375274455,1753612253275,-800.65,0.00021643,2]
[375274456,1753612253284,-482.48,0.00021643,2]
[375274457,1753612253293,-513.13,0.00021643,2]
[375274458,1753612253303,-692.74,0.00021643,2]
[375274459,1753612253312,-460.0,0.00021643,2]
[375274460,1753612253321,-522.56,0.00021643,2]
[375274461,1753612253331,-912.91,0.00021643,2]
[375274462,1753612253340,-2532.53,0.00021643,2]
[375274463,1753612253349,-460.0,0.00021643,2]
[375274464,1753612253358,-30224.94180613,0.00021643,2]
[375274465,1753612253367,-151.0,0.00021644,2]
[375274466,1753612253377,-151.0,0.00021644,2]
[375274467,1753612253387,-151.0,0.00021644,2]
[375274468,1753612253397,-485.0,0.00021644,2]
[375274469,1753612253407,-151.0,0.00021644,2]
[375274470,1753612253416,-151.0,0.00021644,2]
[375274471,1753612253503,-151.0,0.00021644,2]
[375274472,1753612253513,-500.0,0.00021644,2]
[375274473,1753612253522,-151.0,0.00021644,2]
[375274474,1753612253532,-280.82209676,0.00021644,2]
[375274475,1753612253541,-302.0,0.00021644,2]
[375274476,1753612253550,-459.0,0.00021644,2]
[375274477,1753612253559,-500.0,0.00021644,2]
[375274478,1753612253569,-407.37951896,0.00021644,2]
[375274479,1753612253578,-500.0,0.00021644,2]
[375274480,1753612253587,-151.0,0.00021644,2]
[375274481,1753612253597,-500.0,0.00021644,2]
[375274482,1753612253606,-1258.0,0.00021694,2]
[375274483,1753612253615,-150.0,0.00021705,2]
[375274484,1753612253625,-600.0,0.00021712,2]
[375274485,1753612253634,-168.0,0.00021721,2]
[375274486,1753612253644,-931.91848197,0.00021739,2]
[375274487,1753612253654,-3530.03203711,0.00021762,5]
[375274488,1753612253663,-224.048,0.00021879,2]
[375274489,1753612253674,-150.0,0.00021879,2]
[375274490,1753612253683,-150.57,0.00021879,2]
[375274491,1753612253692,-150.0,0.00021879,2]
[375274492,1753612253702,-220.021,0.00021879,2]
[375274493,1753612253711,-246.136,0.00021879,2]
[375274494,1753612253721,-244.179,0.00021879,2]
[375274495,1753612253730,-151.0,0.000219,4]
[375274496,1753612253740,-151.0,0.00021901,4]
[375274497,1753612253750,-361.25336145,0.0002191,2]
[375274498,1753612253759,-420.79,0.00021916,2]
[375274499,1753612253768,-460.0,0.00021917,2]
[375274500,1753612253777,-500.0,0.00021917,2]
[375274501,1753612253788,-500.0,0.00021917,2]
[375274502,1753612253797,-500.0,0.00021917,2]
[375274503,1753612253806,-500.0,0.00021917,2]
[375274504,1753612253816,-500.0,0.00021917,2]
[375274505,1753612253825,-500.0,0.00021917,2]
[375274506,1753612253835,-500.0,0.00021917,2]
[375274507,1753612253844,-500.0,0.00021917,2]
[375274508,1753612253853,-460.0,0.00021917,2]
[375274509,1753612253862,-151.0,0.00021917,2]
[375274510,1753612253872,-151.750273,0.00021917,2]
[375274511,1753612253881,-563.3,0.00021917,2]
[375274512,1753612253891,-151.0,0.00021917,2]
[375274513,1753612253900,-151.0,0.00021917,2]
[375274514,1753612253910,-151.0,0.00021917,2]
[375274515,1753612253919,-151.0,0.00021917,2]
[375274516,1753612253928,-151.0,0.00021917,2]
[375274517,1753612253937,-151.0,0.00021917,2]
[375274518,1753612253947,-151.0,0.00021917,2]
[375274519,1753612253956,-460.0,0.00021917,2]
[375274520,1753612253965,-151.0,0.00021917,2]
[375274521,1753612253974,-460.0,0.00021917,2]
[375274522,1753612253983,-264.503526,0.00021917,2]
[375274523,1753612253993,-264.503526,0.00021917,2]
[375274524,1753612254002,-151.0,0.00021917,2]
[375274525,1753612254012,-838.11,0.00021917,2]
[375274526,1753612254021,-590.56,0.00021917,2]
[375274527,1753612254030,-716.54,0.00021917,2]
[375274528,1753612254041,-1103.32,0.00021917,2]
[375274529,1753612254051,-151.0,0.00021917,2]
[375274530,1753612254060,-175.855063,0.00021917,2]
[375274531,1753612254069,-460.0,0.00021917,2]
[375274532,1753612254078,-151.0,0.00021917,2]
[375274533,1753612254087,-151.0,0.00021917,2]
[375274534,1753612254097,-460.0,0.00021917,2]
[375274535,1753612254106,-245.154035,0.00021917,2]
[375274536,1753612254115,-460.0,0.00021917,2]
[375274537,1753612254124,-4686.83,0.00021917,2]
[375274538,1753612254134,-151.0,0.00021917,2]
[375274539,1753612254143,-460.0,0.00021917,2]
[375274540,1753612254153,-775.26,0.00021917,2]
[375274541,1753612254162,-611.59,0.00021917,2]
[375274542,1753612254171,-169.487914,0.00021917,2]
[375274543,1753612254181,-5031.59,0.00021917,2]
[375274544,1753612254190,-151.0,0.00021917,2]
[375274545,1753612254199,-500.0,0.00021917,2]
[375274546,1753612254209,-500.0,0.00021917,2]
[375274547,1753612254218,-500.0,0.00021917,2]
[375274548,1753612254227,-500.0,0.00021917,2]
[375274549,1753612254240,-500.0,0.00021917,2]
[375274550,1753612254249,-500.0,0.00021917,2]
[375274551,1753612254260,-500.0,0.00021917,2]
[375274552,1753612254269,-151.0,0.00021917,2]
[375274553,1753612254279,-500.0,0.00021917,2]
[375274554,1753612254290,-500.0,0.00021917,2]
[375274555,1753612254300,-500.0,0.00021917,2]
[375274556,1753612254309,-500.0,0.00021917,2]
[375274557,1753612254319,-460.0,0.00021917,2]
[375274558,1753612254331,-151.0,0.00021917,2]
[375274559,1753612254339,-535.45,0.00021917,2]
[375274560,1753612254349,-151.0,0.00021917,2]
[375274561,1753612254357,-3527.67,0.00021917,2]
[375274562,1753612254366,-460.0,0.00021917,2]
[375274563,1753612254375,-1827.36,0.00021917,2]
[375274564,1753612254384,-1887.82,0.00021917,2]
[375274565,1753612254393,-614.29,0.00021917,2]